Cogmind - Beta 17 @@@ ROGUE MODE // 2026.06.26 @ 20:35:55 Player: Mediocre Result: Heading to fleet! Performance ------------- Evolutions (9) 4500 Regions Visited (26) 5200 Robots Destroyed (378) 1890 Value Destroyed (22711) 22711 Prototype IDs (388) 7760 Alien Tech Used (8) 1600 Bonus (38483) 38483 TOTAL SCORE: 82144 Bonus ------- High Alert Combat Kills 5452 Follower Combat Kills 2631 Forged Quantum Companion 2000 Registered with UFD 300 Met Data Miner 300 Met Zhirov 300 Met Warlord at Base 500 MAIN.C Attacked Warlord 500 Used Core Reset Matrix 3000 Destroyed MAIN.C Guards 500 Met MAIN.C 5000 Destroyed MAIN.C Shell 5000 Destroyed MAIN.C 10000 Win 3000 Cogmind --------- Core Integrity 203/1600 Matter 300/300 Energy 822/840 System Corruption 0% +Membrane Temperature Cool (12) Movement Walking (105) Location To Fleet Rendezvous Parts ------- > --- POWER (1) -------- Zero-point Reactor > --- PROPULSION (6) --- Myomer Leg Biometal Leg Biometal Leg Biometal Leg High-density Centrium Leg High-density Centrium Leg > --- UTILITY (16) ----- High-capacity Storage Unit Experimental Energy Well Advanced Melee Analysis Suite Advanced Melee Analysis Suite Advanced Melee Analysis Suite Advanced Melee Analysis Suite Experimental Core Analyzer Centrium Medium Armor Plating Centrium Heavy Armor Plating Heavy Regenerative Plating Heavy Regenerative Plating Graphene Brace AEGIS Remote Shield > --- WEAPON (2) ------- Superquantum Companion > --- INVENTORY (20) --- Myomer Leg Biometal Leg Biometal Leg High-density Centrium Leg High-density Centrium Leg Experimental Biometal Leg ECM Suite Experimental Phase Shifter Improved Weapon Shielding Improved Weapon Shielding Backup Plating VII Graphene Brace Amulet of Y3-NDR Terrabomb Cooled Nova Cannon Perforator Advanced Remote Datajack Peak State ------------ > --- POWER ------------ Zero-point Reactor > --- PROPULSION ------- Myomer Leg Biometal Leg Biometal Leg Biometal Leg High-density Centrium Leg High-density Centrium Leg > --- UTILITY ---------- High-capacity Storage Unit Experimental Energy Well Advanced Melee Analysis Suite Advanced Melee Analysis Suite Advanced Melee Analysis Suite Advanced Melee Analysis Suite Experimental Core Analyzer Centrium Medium Armor Plating Centrium Heavy Armor Plating Heavy Regenerative Plating Heavy Regenerative Plating Graphene Brace AEGIS Remote Shield > --- WEAPON ----------- Superquantum Companion > --- INVENTORY -------- Myomer Leg Biometal Leg Biometal Leg High-density Centrium Leg High-density Centrium Leg Experimental Biometal Leg ECM Suite Experimental Phase Shifter Improved Weapon Shielding Improved Weapon Shielding Backup Plating VII Graphene Brace Amulet of Y3-NDR Terrabomb Cooled Nova Cannon Perforator Advanced Remote Datajack [Rating: 205] Favorites ----------- Power Particle Reactor Engine Reinforced Deuterium Engine Power Core Light Neutrino Core Reactor Particle Reactor Propulsion Armored Leg Treads Light Treads Leg Armored Leg Wheel Subdweller Monowheel Utility Advanced Melee Analysis Suite Device Graphene Brace Storage High-capacity Storage Unit Processor Advanced Melee Analysis Suite Hackware Advanced Hacking Suite Protection Enhanced Scrap Shield Weapon Companion Sword Energy Gun Small Laser Energy Cannon Subdweller Beam Cannon Ballistic Gun Barrage Gun Ballistic Cannon Battle Cannon Launcher Subdweller Shrapnel Launcher Impact Weapon Core Stripper Slashing Weapon Companion Sword Build | -11 -10 -10 -9 -9 -6 -6 -6 -6 -5 -5 -5 -5 -5 -4 -4 -4 -4 -4 -3 -3 -3 -3 -2 -2 -1 -1 ------- Run | Yrd Mat Sub Rec Scr Fac Low Low Dat Pro Fac Upp Upp Zhi Pro Fac Upp Upp War Pro Res Qua Sec Res Tes Acc Com Slots Evolved 18 | . . . . . 8 . . . . 2 . . . . 2 . . . . 2 . . 2 . 2 . Power . | . . . . . . . . . . . . . . . . . . . . . . . . . . . Propulsion 4 | . . . . . 2 . . . . 1 . . . . . . . . . 1 . . . . . . Utility 14 | . . . . . 6 . . . . 1 . . . . 2 . . . . 1 . . 2 . 2 . Weapon . | . . . . . . . . . . . . . . . . . . . . . . . . . . . Parts Attached 252 | 4 . 19 . 1 32 5 3 . 7 13 4 1 4 . 15 2 4 8 . 12 27 10 16 16 10 39 Power 30 | . . 1 . . 7 . . . 1 1 . . 1 . 1 1 1 1 . 2 1 2 1 2 . 7 Engine 5 | . . 1 . . 3 . . . 1 . . . . . . . . . . . . . . . . . Core 5 | . . . . . 4 . . . . . . . . . . . . . . 1 . . . . . . Reactor 20 | . . . . . . . . . . 1 . . 1 . 1 1 1 1 . 1 1 2 1 2 . 7 Propulsion 78 | 2 . 2 . . 6 2 2 . 4 8 . . 1 . 3 . . 1 . 3 10 2 12 6 6 8 Treads 2 | 2 . . . . . . . . . . . . . . . . . . . . . . . . . . Leg 73 | . . . . . 5 2 2 . 4 8 . . 1 . 3 . . 1 . 3 10 2 12 6 6 8 Wheel 3 | . . 2 . . 1 . . . . . . . . . . . . . . . . . . . . . Hover . | . . . . . . . . . . . . . . . . . . . . . . . . . . . Flight . | . . . . . . . . . . . . . . . . . . . . . . . . . . . Utility 124 | . . 6 . . 19 3 1 . 2 4 4 1 2 . 11 1 3 5 . 7 14 6 3 6 4 22 Device 59 | . . 4 . . 8 2 1 . 1 2 2 . 1 . 4 . 2 3 . 3 7 5 2 2 2 8 Storage 8 | . . 2 . . 1 . . . . . 1 . . . 1 . . . . 1 1 . . . . 1 Processor 24 | . . . . . 5 . . . . . . . . . 4 1 . 1 . 2 2 1 1 1 1 5 Hackware 5 | . . . . . . . . . . 2 . . . . 2 . . . . . 1 . . . . . Protection 28 | . . . . . 5 1 . . 1 . 1 1 1 . . . 1 1 . 1 3 . . 3 1 8 Artifact . | . . . . . . . . . . . . . . . . . . . . . . . . . . . Weapon 20 | 2 . 10 . 1 . . . . . . . . . . . . . 1 . . 2 . . 2 . 2 Energy Gun 2 | 2 . . . . . . . . . . . . . . . . . . . . . . . . . . Energy Cannon 4 | . . 2 . . . . . . . . . . . . . . . 1 . . . . . 1 . . Ballistic Gun 8 | . . 6 . . . . . . . . . . . . . . . . . . . . . . . 2 Ballistic Cannon 2 | . . 1 . . . . . . . . . . . . . . . . . . . . . 1 . . Launcher 1 | . . 1 . . . . . . . . . . . . . . . . . . . . . . . . Special Weapon . | . . . . . . . . . . . . . . . . . . . . . . . . . . . Impact Weapon 1 | . . . . . . . . . . . . . . . . . . . . . 1 . . . . . Slashing Weapon 2 | . . . . 1 . . . . . . . . . . . . . . . . 1 . . . . . Piercing Weapon . | . . . . . . . . . . . . . . . . . . . . . . . . . . . Special Melee Weapon . | . . . . . . . . . . . . . . . . . . . . . . . . . . . Unidentified Prototypes 35 | . . 1 . 1 1 1 1 . . 1 . . 5 . 1 . . 4 . . 7 1 . 9 . 2 Parts Lost 86 | . . 5 . . 11 2 . . 8 2 . . . 1 4 . 1 . . 4 8 1 1 6 1 31 Power 12 | . . 1 . . 3 . . . . . . . . . . . . . . 1 . . . . . 7 Propulsion 25 | . . 2 . . 1 . . . 3 . . . . . . . . . . 2 5 . . 4 . 8 Utility 47 | . . . . . 7 2 . . 5 2 . . . 1 4 . 1 . . 1 3 1 1 2 1 16 Weapon 2 | . . 2 . . . . . . . . . . . . . . . . . . . . . . . . Highest Loss Streak 13 | . . 2 . . 3 2 . . 4 1 . . . 1 2 . 1 . . 3 2 1 1 5 1 13 To Critical Strikes . | . . . . . . . . . . . . . . . . . . . . . . . . . . . Average Backups 14 | 1 3 12 16 11 10 12 13 14 11 11 14 14 15 14 12 14 14 14 15 13 17 17 18 18 19 16 Power . | . 1 . . . . . . . . 1 2 2 2 1 1 1 1 1 1 . 2 1 1 1 2 . Propulsion 3 | . . . 1 1 4 6 5 5 4 5 5 5 5 4 4 3 3 2 2 1 1 . 1 1 4 5 Utility 6 | . 1 1 4 4 3 4 6 7 5 1 4 4 4 5 5 8 8 8 9 9 9 9 10 10 8 6 Weapon 2 | . 1 8 10 3 . . . . . . 1 1 1 1 1 1 1 1 1 1 1 2 2 1 2 2 Tool/Special . | . . . . . . . . . . . . . . . . . . . . . . . . . . . Unused Backups 35 | . . 2 . 1 3 . . . . 1 . . . 2 1 . . 3 . . 3 1 2 1 . 15 Power 5 | . . . . . . . . . . . . . . 1 . . . . . . 2 1 1 . . . Propulsion 9 | . . . . . 2 . . . . 1 . . . . . . . . . . . . . . . 6 Utility 10 | . . . . . . . . . . . . . . . . . . 3 . . 1 . . . . 6 Weapon 5 | . . 2 . 1 1 . . . . . . . . . . . . . . . . . . 1 . . Tool/Special 6 | . . . . . . . . . . . . . . 1 1 . . . . . . . 1 . . 3 Average Slot Usage (%) 83 | . 57 84 66 58 69 85 86 86 78 80 88 88 87 87 83 89 88 84 84 84 88 88 85 85 86 82 Engine 2 | . . 6 . . 2 6 6 6 6 4 5 5 2 . . . . . . . . . . . . . Reactor 2 | . . . . . . . . . . . . . 2 5 5 5 5 5 5 1 4 4 4 4 4 3 Treads 3 | . 28 25 . . . . . . . . . . . . . . . . . . . . . . . . Leg 20 | . . . . . 8 26 26 26 25 29 29 29 29 29 26 26 26 26 26 27 27 28 26 22 20 22 Wheel 1 | . . 1 28 28 3 . . . . . . . . . . . . . . . . . . . . . Device 12 | . . 8 14 14 9 4 6 6 8 11 10 13 10 10 8 10 10 13 15 15 19 18 17 16 22 11 Storage 6 | . . 14 14 14 5 6 6 6 6 5 5 5 5 5 5 5 5 5 5 4 4 4 4 4 4 6 Processor 13 | . . . . . 23 23 20 20 8 5 5 5 5 5 12 21 20 11 10 14 17 20 21 21 20 22 Hackware 1 | . . . . . . . . . . 4 11 11 8 5 8 5 4 . . . . . . . . . Protection 8 | . . . . . 4 8 13 13 14 10 11 8 13 17 10 10 10 15 15 12 8 6 7 10 12 12 Energy Cannon 1 | . . 8 . . . . . . . . . . . . . . . . . . . . . . . . Ballistic Gun 2 | . . 16 9 . . . . . . . . . . . . . . . . . . . . . . . Slashing Weapon 3 | . . . . 1 5 6 6 6 6 5 5 5 5 5 5 5 5 5 5 4 3 4 4 4 4 4 Peak Build Rating 205 | 4 4 18 18 20 83 71 70 70 70 86 86 88 94 96 110 107 112 114 114 131 163 153 164 191 195 205 Average Rating 102 | 2 4 14 15 13 70 69 69 70 60 78 84 87 89 92 99 106 106 106 114 125 141 146 161 165 191 186 On Entrance 85 | . 4 4 18 14 20 64 69 70 70 60 85 85 85 93 89 107 107 103 114 114 131 153 143 146 179 185 Avg Prop Armor Cover (%) 22 | 32 29 . . 11 . . . . . . . . . . . . . . . . . . . . . . Naked Turns . | . . . . . . . . . . . . . . . . . . . . . . . . . . . Heaviest Build 144 | 2 2 63 49 45 48 53 53 52 63 65 69 63 63 67 61 53 63 77 76 77 122 110 111 98 111 144 Greatest Support 180 | 20 3 40 40 40 80 80 75 70 75 92 80 80 92 92 98 93 93 98 98 135 157 154 156 172 178 180 Greatest Overweight (x) 15 | . . 15 1 2 1 . . . 1 . . . . . . . . . . . . . . . . . Average Overweight (x) . | . . 1 1 1 . . . . . . . . . . . . . . . . . . . . . . Largest Inventory Capacity 20 | 5 5 20 20 20 20 15 15 15 15 15 15 15 15 15 15 15 15 15 15 15 20 20 20 20 20 20 Average Capacity 17 | 5 5 18 20 20 15 15 15 15 15 15 15 15 15 15 15 15 15 15 15 15 19 20 20 20 20 20 Most Carried 20 | 3 5 20 20 20 18 15 15 15 15 15 15 15 15 15 15 15 15 15 15 15 20 20 20 20 20 20 Average Carried 15 | 1 4 15 19 15 11 13 14 15 12 11 14 14 14 14 13 14 15 14 15 14 18 19 19 19 19 17 Final Capacity 20 | 5 5 20 20 20 15 15 15 15 15 15 15 15 15 15 15 15 15 15 15 15 20 20 20 20 20 20 Final Carried 20 | 3 5 20 20 18 11 15 15 15 11 13 15 15 15 12 15 15 15 15 15 15 20 20 20 20 20 18 Class Distribution -------------------- 47% | Mutant 30% | Scavenger-Mutant 10% | Alien-Mutant 8% | Hacker-Mutant Dominant Class ---------------- Mutant | -10/Materials Mutant | -10/Subcaves Mutant | -9/Recycling Mutant | -9/Scraptown Mutant | -6/Factory Scavenger-Mutant | -6/Lower Caves Mutant | -6/Lower Caves Mutant | -6/Data Miner Scavenger-Mutant | -5/Proximity Caves Mutant | -5/Factory Hacker-Mutant | -5/Upper Caves Hacker-Mutant | -5/Upper Caves Mutant | -5/Zhirov Mutant | -4/Proximity Caves Mutant | -4/Factory Mutant | -4/Upper Caves Mutant | -4/Upper Caves Commander-Mutant | -4/Warlord Scavenger-Mutant | -3/Proximity Caves Mutant | -3/Research Mutant | -3/Quarantine Alien-Mutant | -3/Section 7 Scavenger-Mutant | -2/Research Scavenger-Mutant | -2/Testing Alien-Mutant | -1/Access Scavenger-Mutant | -1/Command Resources | -11 -10 -10 -9 -9 -6 -6 -6 -6 -5 -5 -5 -5 -5 -4 -4 -4 -4 -4 -3 -3 -3 -3 -2 -2 -1 -1 ----------- Run | Yrd Mat Sub Rec Scr Fac Low Low Dat Pro Fac Upp Upp Zhi Pro Fac Upp Upp War Pro Res Qua Sec Res Tes Acc Com Matter Collected 4665 | 218 22 465 . 46 468 126 83 . 188 202 94 122 70 73 200 40 50 . 120 223 485 250 230 210 115 565 Remotely . | . . . . . . . . . . . . . . . . . . . . . . . . . . . Salvage Created 26805 | . 14 355 . . 2041 244 152 . 718 611 49 138 240 67 1479 143 268 . 456 2312 2732 1571 3940 1649 2504 5122 Parts 1178 | . 3 31 . . 90 9 8 . 16 37 3 8 2 2 55 14 11 . 16 125 101 63 162 92 133 197 Haulers Intercepted 7 | . . . . . 2 . . . . 1 . . . . . . . . . 3 . . . 1 . . Recyclers Shooed 3 | . . . . . 2 . . . . . . . . . . . . . . 1 . . . . . . Parts Field Recycled . | . . . . . . . . . . . . . . . . . . . . . . . . . . . Retrieved Matter . | . . . . . . . . . . . . . . . . . . . . . . . . . . . Parts Self-Destructed 99 | . . 18 . . . 2 3 . 30 . 4 17 . 5 . 7 11 . 2 . . . . . . . Prevented 47 | . . . . . . . 1 . 8 . . 2 . 10 . 9 12 . 5 . . . . . . . Parts Restored . | . . . . . . . . . . . . . . . . . . . . . . . . . . . Kills | -11 -10 -10 -9 -9 -6 -6 -6 -6 -5 -5 -5 -5 -5 -4 -4 -4 -4 -4 -3 -3 -3 -3 -2 -2 -1 -1 ------- Run | Yrd Mat Sub Rec Scr Fac Low Low Dat Pro Fac Upp Upp Zhi Pro Fac Upp Upp War Pro Res Qua Sec Res Tes Acc Com Combat Hostiles Destroyed 313 | . . 11 . . 18 6 2 . 7 3 2 3 . 1 11 6 2 . . 29 33 21 49 22 37 50 Melee 259 | . . . . . 18 6 2 . 7 3 2 3 . 1 11 6 2 . . 24 24 17 39 21 32 41 Guns 2 | . . 2 . . . . . . . . . . . . . . . . . . . . . . . . Cannons 23 | . . 6 . . . . . . . . . . . . . . . . . 4 1 1 3 . 1 7 AOE 3 | . . 3 . . . . . . . . . . . . . . . . . . . . . . . . Classes Destroyed 25 | . 1 1 . . 10 1 . . . 2 . . . . . . 1 . . 1 2 1 1 2 . 2 Worker 13 | . 1 . . . . . . . . 4 . . . . 2 . . . . 2 . . 2 . 1 1 Builder 2 | . . . . . . . . . . 1 . . . . . . . . . 1 . . . . . . Hauler 7 | . . . . . 2 . . . . 1 . . . . . . . . . 3 . . . 1 . . Recycler 20 | . . . . . 6 . . . . 2 . . . . 5 . . . . 1 . 1 3 . . 2 Carrier 1 | . . . . . . . . . . . . . . . . . . . . . . . . . . 1 Mechanic 1 | . . . . . . . . . . 1 . . . . . . . . . . . . . . . . Operator 5 | . . . . . 1 . . . . . . . . . . . . . . 1 2 . . 1 . . Watcher 16 | . . . . . 1 . . . . . . . . . 2 . . . . 2 3 . 2 3 2 1 Swarmer 66 | . . . . . 3 3 . . . . 2 2 . . . 6 . . . 11 . . 13 5 11 10 Cutter 2 | . . . . . . . . . . . . . . . . . . . . . . 2 . . . . Saboteur 3 | . . . . . . . . . . . . . . . . . . . . . . . 1 1 . 1 Grunt 74 | . . . . . 7 2 2 . 2 . . . . . 4 . 1 . . 1 11 8 16 5 8 7 Brawler 11 | . . . . . . 1 . . 4 . . . . . . . . . . 1 1 . 2 1 . 1 Duelist 5 | . . . . . 1 . . . . . . . . . . . . . . . . 2 1 1 . . Sentry 23 | . . . . . 1 . . . 1 . . 1 . . . . . . . 6 2 3 4 . 2 3 Specialist 6 | . . . . . . . . . . . . . . . . . . . . . 3 . . . . 3 Hunter 27 | . . . . . 4 . . . . . . . . 1 1 . . . . . 6 . . . 7 8 Programmer 70 | . . . . . 2 . . . . 3 . . . . 6 . . . . 9 9 5 11 6 9 10 Heavy 1 | . . . . . . . . . . . . . . . . . . . . 1 . . . . . . Behemoth 3 | . . . . . . . . . . . . . . . . . 1 . . . . . 1 . . 1 S7 Guard 1 | . . . . . . . . . . . . . . . . . . . . . . 1 . . . . M Guard 1 | . . . . . . . . . . . . . . . . . . . . . . . . . . 1 Combat Programmer 1 | . . . . . . . . . . . . . . . . . . . . . . . . . . 1 Striker 2 | . . . . . . . . . . . . . . . . . . . . . . . . 2 . . Executioner 1 | . . . . . . . . . . . . . . . . . . . . . . . . . . 1 Alpha 7 2 | . . . . . . . . . . . . . . . . . . . . . . . . 1 . 1 Fortress 1 | . . . . . . . . . . . . . . . . . . . . . 1 . . . . . Subdweller 11 | . . 11 . . . . . . . . . . . . . . . . . . . . . . . . Decomposer 2 | . . . . . . . 2 . . . . . . . . . . . . . . . . . . . Best Kill Streak 12 | . 1 2 . . 5 2 1 . 2 4 2 1 . 1 4 4 2 . . 8 3 4 12 8 11 10 Combat Bots Only 12 | . . 2 . . 3 2 1 . 2 1 2 1 . 1 2 4 2 . . 7 3 4 12 8 11 8 Max Kills in Single Turn 3 | . 1 1 . . 1 1 1 . 1 1 1 1 . 1 1 1 1 . . 2 1 2 2 1 2 3 Gunslinging . | . . . . . . . . . . . . . . . . . . . . . . . . . . . Exploded 1 | . . 1 . . . . . . . . . . . . . . . . . . . . . . . . Melee 2 | . . . . . 1 1 1 . 1 1 1 1 . 1 1 1 1 . . 1 1 1 2 1 1 2 Uniques/NPCs Destroyed 2 | . . . . . . . . . . . . . . . . . . . . . . . . . . 2 MAIN.C Shell (-1/Command) MAIN.C (-1/Command) Combat | -11 -10 -10 -9 -9 -6 -6 -6 -6 -5 -5 -5 -5 -5 -4 -4 -4 -4 -4 -3 -3 -3 -3 -2 -2 -1 -1 -------- Run | Yrd Mat Sub Rec Scr Fac Low Low Dat Pro Fac Upp Upp Zhi Pro Fac Upp Upp War Pro Res Qua Sec Res Tes Acc Com Hostile Shots Fired 2396 | . . 106 . . 191 40 10 . 90 50 17 58 . 44 65 25 20 56 5 151 294 77 238 110 141 608 Missed 837 | . . 36 . . 38 13 3 . 37 7 5 19 . 8 16 7 6 23 4 56 110 33 92 50 63 211 Intercepted 3 | . . . . . . . . . . . . . . . . . . . . . . . . . . 3 Deflected 55 | . . . . . . . . . . . . . . . . . . 1 . 2 12 1 9 2 4 24 Hits 1559 | . . 70 . . 153 27 7 . 53 43 12 39 . 36 49 18 14 33 1 95 184 44 146 60 78 397 Melee 41 | . . . . . 3 5 . . 7 . . . . . . . 1 . . . 8 6 5 6 . . Projectile 1518 | . . 70 . . 150 22 7 . 46 43 12 39 . 36 49 18 13 33 1 95 176 38 141 54 78 397 AOE 24 | . . . . . 1 . . . . . . . . . 2 . . . . . . . . 3 . 18 Critical Strikes 81 | . . 1 . . 5 2 2 . 4 3 . 2 . 1 . 1 2 3 . 10 8 2 7 3 6 19 Actively Blocked 58 | . . . . . . . . . . . . . . . . 1 2 . . 10 8 2 7 3 6 19 Part Disruptions 11 | . . . . . . . . . . . . . . . . . . 1 . . 2 . . . . 8 Damage Taken 33359 | . . 1111 . . 2770 525 133 . 1470 1015 188 692 8 690 1737 293 544 646 42 2646 2899 583 2028 1791 907 10641 Core 3487 | . . 218 . . 522 5 6 . 206 124 . 30 8 38 104 9 48 15 . 121 285 27 193 131 122 1275 Absorbed by Shields 5849 | . . . . . 156 . . . . . . . . . . . . . . 128 1049 525 1240 125 855 1771 Redirected to Shielding 34 | . . . . . . . . . . . . . . . 34 . . . . . . . . . . . Regen/Repaired (Parts) 99 | . . . . . . . . . . . . . . . . . . 57 . . . . . . . 42 Core Remaining (%) 54 | 100 . . . 12 . . . . 13 . . . . 80 . . . . 84 . . 66 . 71 . 12 Volleys Fired 100 | . 3 80 . . . . . . . . . . . . . . . . . . . . . . . 17 Largest 2 | . 2 2 . . . . . . . . . . . . . . . . . . . . . . . 1 Hottest 110 | . 80 110 . . . . . . . . . . . . . . . . . . . . . . . 100 Shots Fired 148 | . 6 125 . . . . . . . . . . . . . . . . . . . . . . . 17 Gun 89 | . 6 67 . . . . . . . . . . . . . . . . . . . . . . . 16 Cannon 54 | . . 53 . . . . . . . . . . . . . . . . . . . . . . . 1 Launcher 5 | . . 5 . . . . . . . . . . . . . . . . . . . . . . . . Special . | . . . . . . . . . . . . . . . . . . . . . . . . . . . Kinetic 72 | . . 55 . . . . . . . . . . . . . . . . . . . . . . . 17 Thermal 76 | . 6 70 . . . . . . . . . . . . . . . . . . . . . . . . Explosive . | . . . . . . . . . . . . . . . . . . . . . . . . . . . Electromagnetic . | . . . . . . . . . . . . . . . . . . . . . . . . . . . Robot Hit Streak 12 | . 3 12 . . . . . . . . . . . . . . . . . . . . . . . 3 Robot Miss Streak 7 | . 1 7 . . . . . . . . . . . . . . . . . . . . . . . 2 Penetration Max . | . . . . . . . . . . . . . . . . . . . . . . . . . . . Secondary Targets . | . . . . . . . . . . . . . . . . . . . . . . . . . . . Autonomous 51 | . . . . . . . . . . . . . . . . . 3 . . 9 5 3 7 2 2 20 Shots Hit Robots 1014 | . 4 52 . . 70 15 9 . 37 28 5 11 6 7 44 9 8 . 9 89 118 52 121 55 77 188 Core Hits 435 | . 3 15 . . 34 8 3 . 16 9 2 3 2 1 24 6 4 . 2 40 41 20 51 29 33 89 Critical Kills . | . . . . . . . . . . . . . . . . . . . . . . . . . . . Critical Parts Destroyed 2 | . . . . . . . . . . . . . . . . . . . . . . . . . . 2 Critical Strikes 37 | . . 1 . . . . . . . 2 . . . . 2 . . . . 2 12 2 2 4 4 6 Destroy 3 | . . 1 . . . . . . . . . . . . . . . . . . . . . . . 2 Melee Attacks 1180 | . . . . . 84 23 9 . 43 46 10 13 6 14 62 11 10 . 12 108 142 75 135 67 85 225 Kinetic 3 | . . . . . . . . . . . . . . . . . . . . . 3 . . . . . Impact . | . . . . . . . . . . . . . . . . . . . . . . . . . . . Slashing 1177 | . . . . . 84 23 9 . 43 46 10 13 6 14 62 11 10 . 12 108 139 75 135 67 85 225 Piercing . | . . . . . . . . . . . . . . . . . . . . . . . . . . . Sneak Attacks 76 | . . . . . 8 . 2 . . 11 . . . . 12 . 1 . . 8 6 5 6 3 4 10 Combat Hostiles 9 | . . . . . . . . . . . . . . . . . . . . 1 3 2 . . . 3 Follow-up Attacks 32 | . . . . . . . . . . . . . . . 3 . 1 . . 3 2 . 4 8 . 11 Damage Inflicted 74751 | . 56 1384 . . 3358 533 460 . 1587 1611 217 452 532 293 2286 409 741 . 1147 6516 8154 4354 9780 4566 6550 19765 Guns 519 | . 56 447 . . . . . . . . . . . . . . . . . . . . . . . 16 Cannons 4831 | . . 478 . . . . . . . . . . . . . . 244 . . 787 440 253 603 165 156 1705 Explosions 459 | . . 459 . . . . . . . . . . . . . . . . . . . . . . . . Melee 68934 | . . . . . 3358 533 460 . 1587 1611 217 452 532 293 2286 409 497 . 1147 5721 7714 4101 9177 4401 6394 18044 Ramming 8 | . . . . . . . . . . . . . . . . . . . . 8 . . . . . . Kinetic 899 | . . 758 . . . . . . . . . . . . . . . . . . 94 . . . . 47 Thermal 682 | . 56 626 . . . . . . . . . . . . . . . . . . . . . . . . Explosive . | . . . . . . . . . . . . . . . . . . . . . . . . . . . Electromagnetic . | . . . . . . . . . . . . . . . . . . . . . . . . . . . Impact . | . . . . . . . . . . . . . . . . . . . . . . . . . . . Slashing 68840 | . . . . . 3358 533 460 . 1587 1611 217 452 532 293 2286 409 497 . 1147 5721 7620 4101 9177 4401 6394 18044 Piercing . | . . . . . . . . . . . . . . . . . . . . . . . . . . . Phasic 4322 | . . . . . . . . . . . . . . . . . 244 . . 787 440 253 603 165 156 1674 Highest Corruption 24 | . 2 2 2 . 6 8 8 8 23 5 5 5 5 5 . . 3 3 . 6 24 2 . . . . Average Corruption 5 | . 2 2 2 . 2 6 8 8 17 3 5 5 5 5 . . 3 3 . 4 13 2 . . . . Corruption Purged . | . . . . . . . . . . . . . . . . . . . . . . . . . . . Corruption Blocked . | . . . . . . . . . . . . . . . . . . . . . . . . . . . Effects 301 | . . 55 1 . 5 29 12 2 36 14 23 13 3 11 . . 2 . . 18 61 16 . . . . Message Errors 74 | . . 14 1 . 1 5 2 1 10 3 7 4 . 1 . . . . . 3 15 7 . . . . Matter Fused 76 | . . 13 . . 1 10 6 . 4 3 7 3 2 3 . . 1 . . 4 16 3 . . . . Heat Flow Errors 34 | . . 9 . . . 2 . . 5 . 5 . . 3 . . 1 . . 1 7 1 . . . . Energy Discharges 39 | . . 4 . . 2 3 3 . 6 5 2 3 1 . . . . . . 1 8 1 . . . . Parts Rejected 4 | . . . . . . . . . 2 . . 1 . . . . . . . . 1 . . . . . Parts Fused 4 | . . . . . . 1 . 1 1 . . . . . . . . . . . 1 . . . . . Data Loss (minor) 45 | . . 8 . . 1 5 1 . 5 3 2 2 . 2 . . . . . 7 5 4 . . . . Data Loss (major) 16 | . . 4 . . . 2 . . 3 . . . . . . . . . . 1 6 . . . . . Misfires 1 | . . 1 . . . . . . . . . . . . . . . . . . . . . . . . Alerts 6 | . . 1 . . . 1 . . . . . . . 2 . . . . . 1 1 . . . . . Misdirections 1 | . . . . . . . . . . . . . . . . . . . . . 1 . . . . . Weapon Failures 1 | . . 1 . . . . . . . . . . . . . . . . . . . . . . . . Overload Shots . | . . . . . . . . . . . . . . . . . . . . . . . . . . . Overflow Damage 6862 | . . 11 . . 170 . 92 . 219 271 23 77 89 37 190 1 58 . 628 669 615 596 922 305 633 1256 Projectiles 244 | . . 11 . . . . . . . . . . . . . . 16 . . 54 65 13 . . . 85 Explosions . | . . . . . . . . . . . . . . . . . . . . . . . . . . . Melee 6618 | . . . . . 170 . 92 . 219 271 23 77 89 37 190 1 42 . 628 615 550 583 922 305 633 1171 Knockbacks 1 | . . 1 . . . . . . . . . . . . . . . . . . . . . . . . Impact . | . . . . . . . . . . . . . . . . . . . . . . . . . . . Kinetic 1 | . . 1 . . . . . . . . . . . . . . . . . . . . . . . . Secondary . | . . . . . . . . . . . . . . . . . . . . . . . . . . . Self-Inflicted Damage 30 | . . 30 . . . . . . . . . . . . . . . . . . . . . . . . Shots 1 | . . 1 . . . . . . . . . . . . . . . . . . . . . . . . Rammed . | . . . . . . . . . . . . . . . . . . . . . . . . . . . Targets Rammed 1 | . . . . . . . . . . . . . . . . . . . . 1 . . . . . . Kicked 1 | . . . . . . . . . . . . . . . . . . . . 1 . . . . . . Crushed . | . . . . . . . . . . . . . . . . . . . . . . . . . . . Highest Temperature 328 | . 31 241 . . 5 156 1 . 266 . 255 . . 290 . . 254 328 . 214 253 235 . . . . Average Temperature 89 | . 11 55 . . 5 78 1 . 91 . 100 . . 114 . . 130 126 . 117 100 130 . . . . Received Heat Transfer 2943 | . . 258 . . 432 81 63 . 405 12 . 72 . 81 246 . 129 164 9 110 265 50 137 63 32 334 Effects 1 | . . . . . . . . . . . . . . 1 . . . . . . . . . . . . Interference 1 | . . . . . . . . . . . . . . 1 . . . . . . . . . . . . Siege Activations . | . . . . . . . . . . . . . . . . . . . . . . . . . . . Martial Activations . | . . . . . . . . . . . . . . . . . . . . . . . . . . . Shielding Activations . | . . . . . . . . . . . . . . . . . . . . . . . . . . . Robots Disrupted 8 | . . . . . . . . . . . . . . . 1 . 1 . . . 1 1 . 1 1 2 Combat Hostiles 7 | . . . . . . . . . . . . . . . 1 . 1 . . . 1 1 . 1 . 2 Robots Corrupted . | . . . . . . . . . . . . . . . . . . . . . . . . . . . Combat Hostiles . | . . . . . . . . . . . . . . . . . . . . . . . . . . . Parts Fried 7 | . . . . . . . . . . 1 . . . . 3 . 1 . . . . . . . . 2 Impact Corruptions . | . . . . . . . . . . . . . . . . . . . . . . . . . . . Robots Melted . | . . . . . . . . . . . . . . . . . . . . . . . . . . . Combat Hostiles . | . . . . . . . . . . . . . . . . . . . . . . . . . . . Parts Melted 2 | . . . . . . . . . . . . . . . . . . . . . . . . . . 2 Heat Transferred 1129 | . 125 1004 . . . . . . . . . . . . . . . . . . . . . . . . Parts Sabotaged . | . . . . . . . . . . . . . . . . . . . . . . . . . . . Parts Stolen . | . . . . . . . . . . . . . . . . . . . . . . . . . . . Parts Stripped 119 | . . . . . . . . . . . . . . . . . . . . . 52 19 28 5 8 7 Power Chain Reactions . | . . . . . . . . . . . . . . . . . . . . . . . . . . . Alert | -11 -10 -10 -9 -9 -6 -6 -6 -6 -5 -5 -5 -5 -5 -4 -4 -4 -4 -4 -3 -3 -3 -3 -2 -2 -1 -1 ------- Run | Yrd Mat Sub Rec Scr Fac Low Low Dat Pro Fac Upp Upp Zhi Pro Fac Upp Upp War Pro Res Qua Sec Res Tes Acc Com Maximum Alert Level 4 | . . . . . . . . . . 1 . . . . 2 . . . . 2 2 2 4 3 3 4 Low Security (%) 26 | 100 100 . 100 . 100 . . . . 76 . . . . 50 . . . . 37 38 . . . . . Level 1 21 | . . . . . . . . . . 23 . . . . 37 . . . . 55 32 53 36 . . . Level 2 19 | . . . . . . . . . . . . . . . 11 . . . . 7 28 46 14 93 38 1 Level 3 12 | . . . . . . . . . . . . . . . . . . . . . . . 39 6 61 18 Level 4 20 | . . . . . . . . . . . . . . . . . . . . . . . 8 . . 79 Level 5 . | . . . . . . . . . . . . . . . . . . . . . . . . . . . High Security . | . . . . . . . . . . . . . . . . . . . . . . . . . . . Max Security . | . . . . . . . . . . . . . . . . . . . . . . . . . . . Peak Influence 1258 | . . . 56 . 157 . . . . 260 . . . . 527 . . . . 419 542 575 1218 744 1019 1258 Initial 684 | . . . 56 . . . . . . . . . . . . . . . . 8 231 285 305 684 439 641 Average 426 | . . . 39 . 52 . . . . 147 . . . . 190 . . . . 221 297 426 658 549 729 1084 Influence Increases 11459 | . 5 177 . . 549 170 69 . 511 515 70 371 15 165 1163 339 173 58 118 865 959 678 1405 632 924 1528 Destroy 0b10 Robot/C 7480 | . . 40 . . 360 120 60 . 320 240 40 260 . 100 540 240 100 40 80 620 660 420 980 440 740 1080 Destroy 0b10 Robot/NC 400 | . 5 . . . 50 . . . 15 65 . . 15 . 45 . 5 . . 50 25 5 35 25 15 45 Destroy Leader 1298 | . . . . . 76 20 . . 20 56 . 20 . 10 114 30 20 . 10 128 116 90 184 58 154 192 Allied During Kill 692 | . . 2 . . . . 9 . 66 113 . 61 . 25 223 54 33 3 28 23 . . . . . 52 Successful Hack 47 | . . . . . . . . . . . . . . . 5 . . . . 24 . . 2 16 . . Disable Machine 330 | . . . . . . . . . . . . . . . 90 . . . . . 75 60 . 75 . 30 Destroy Structure 357 | . . . . . 3 . . . . 26 . . . . 146 . . . . 20 8 28 39 18 15 54 Partial Spotted 15 | . . . . . . . . . . . . . . . . . . . . . 15 . . . . . Lose Combat Pursuer 840 | . . 135 . . 60 30 . . 90 15 30 30 . 30 . 15 15 15 . . 60 75 165 . . 75 Influence Decreases 10202 | . 5 59 102 16 416 275 97 . 511 388 197 334 52 165 644 511 507 46 130 465 863 644 730 1118 653 1274 Entered New Map 2355 | . . . 62 16 . 50 6 . . . 48 . 37 . . 193 67 13 25 5 182 224 238 534 293 362 Time Decay 6052 | . 5 19 40 . 306 205 91 . 311 330 149 214 15 125 384 278 350 6 105 420 601 410 482 374 350 482 Lost Part 808 | . . 20 . . 110 20 . . 80 18 . . . . 30 . 10 . . 40 80 10 10 60 10 310 Lost Ally 687 | . . 20 . . . . . . 120 40 . 120 . 40 80 40 80 27 . . . . . . . 120 Purge Threat 300 | . . . . . . . . . . . . . . . 150 . . . . . . . . 150 . . Squads Dispatched 70 | . 3 . . . 2 . . . 1 5 . . . . 8 . . . . 9 11 4 9 5 3 10 Investigation 4 | . . . . . . . . . . . . . . . 1 . . . . 1 1 . 1 . . . Extermination 28 | . . . . . 1 . . . . 1 . . . . 3 . . . . 4 5 2 4 2 2 4 Reinforcement 19 | . 3 . . . 1 . . . . 1 . . . . 2 . . . . 1 2 2 1 1 1 4 Assault 10 | . . . . . . . . . 1 . . . . . 2 . . . . . . . 3 2 . 2 Garrison 9 | . . . . . . . . . . 3 . . . . . . . . . 3 3 . . . . . Intercept . | . . . . . . . . . . . . . . . . . . . . . . . . . . . Searches Triggered . | . . . . . . . . . . . . . . . . . . . . . . . . . . . Data Miner Redirects 6 | . . . . . . . . . . . . . . . . . . . . . 1 . 3 1 . 1 Construction Impeded 1 | . . . . . . . . . . . . . . . 1 . . . . . . . . . . . Haulers Reinforced 2 | . . . . . . . . . . 1 . . . . 1 . . . . . . . . . . . Active Scanning Responses . | . . . . . . . . . . . . . . . . . . . . . . . . . . . Cargo Convoy Interrupts . | . . . . . . . . . . . . . . . . . . . . . . . . . . . Stealth | -11 -10 -10 -9 -9 -6 -6 -6 -6 -5 -5 -5 -5 -5 -4 -4 -4 -4 -4 -3 -3 -3 -3 -2 -2 -1 -1 --------- Run | Yrd Mat Sub Rec Scr Fac Low Low Dat Pro Fac Upp Upp Zhi Pro Fac Upp Upp War Pro Res Qua Sec Res Tes Acc Com Distress Signals 40 | . . . . . . . . . . 3 . . . . . . . . . 2 . 5 1 . 5 24 Communications Jammed . | . . . . . . . . . . . . . . . . . . . . . . . . . . . Distress Signals . | . . . . . . . . . . . . . . . . . . . . . . . . . . . Times Spotted 538 | . 3 16 . . 28 8 8 . 29 14 5 19 . 8 29 12 8 18 11 39 42 29 70 26 45 71 Peak Tracking Total 16 | . 5 2 . . 4 3 6 . 7 4 4 8 . 4 4 4 4 16 9 6 4 5 13 8 6 8 Tactical Retreats 41 | . . 5 . . 2 1 . . 4 1 1 2 . 1 . 1 1 1 . . 2 5 7 . . 7 ECM-based Alert Blocks 11 | . . . . . . . . . . . . . . . . . . . . . . . 5 . . 6 Traps | -11 -10 -10 -9 -9 -6 -6 -6 -6 -5 -5 -5 -5 -5 -4 -4 -4 -4 -4 -3 -3 -3 -3 -2 -2 -1 -1 ------- Run | Yrd Mat Sub Rec Scr Fac Low Low Dat Pro Fac Upp Upp Zhi Pro Fac Upp Upp War Pro Res Qua Sec Res Tes Acc Com Traps Triggered 14 | . 1 1 . . 1 . . . . . . . . . 1 . . 1 . 3 2 . 1 1 2 . Indirectly . | . . . . . . . . . . . . . . . . . . . . . . . . . . . Trap Hack Attempts . | . . . . . . . . . . . . . . . . . . . . . . . . . . . Triggered . | . . . . . . . . . . . . . . . . . . . . . . . . . . . Disarmed . | . . . . . . . . . . . . . . . . . . . . . . . . . . . Reprogrammed . | . . . . . . . . . . . . . . . . . . . . . . . . . . . Reused . | . . . . . . . . . . . . . . . . . . . . . . . . . . . Traps Extracted . | . . . . . . . . . . . . . . . . . . . . . . . . . . . Installed . | . . . . . . . . . . . . . . . . . . . . . . . . . . . Triggered . | . . . . . . . . . . . . . . . . . . . . . . . . . . . Machines | -11 -10 -10 -9 -9 -6 -6 -6 -6 -5 -5 -5 -5 -5 -4 -4 -4 -4 -4 -3 -3 -3 -3 -2 -2 -1 -1 ---------- Run | Yrd Mat Sub Rec Scr Fac Low Low Dat Pro Fac Upp Upp Zhi Pro Fac Upp Upp War Pro Res Qua Sec Res Tes Acc Com Machines Disabled 26 | . . 2 . . . . . . . . . . . . 6 . 2 . . . 5 4 . 5 . 2 Max in Single Turn 1 | . . 1 . . . . . . . . . . . . 1 . 1 . . . 1 1 . 1 . 1 Garrison Access 3 | . . . . . . . . . . . . . . . 1 . . . . . . . 1 1 . . Machines Repaired . | . . . . . . . . . . . . . . . . . . . . . . . . . . . Machines Dismantled . | . . . . . . . . . . . . . . . . . . . . . . . . . . . Machines Sabotaged . | . . . . . . . . . . . . . . . . . . . . . . . . . . . Overloaded Fab Kills . | . . . . . . . . . . . . . . . . . . . . . . . . . . . Hacking | -11 -10 -10 -9 -9 -6 -6 -6 -6 -5 -5 -5 -5 -5 -4 -4 -4 -4 -4 -3 -3 -3 -3 -2 -2 -1 -1 --------- Run | Yrd Mat Sub Rec Scr Fac Low Low Dat Pro Fac Upp Upp Zhi Pro Fac Upp Upp War Pro Res Qua Sec Res Tes Acc Com Machines Accessed 40 | . . 2 . 1 . . . 3 . 2 . . 4 . 2 2 . 2 . 4 4 1 5 5 1 2 Terminals 13 | . . . . . . . . . . 1 . . . . 1 . . . . 1 2 . 3 3 . 2 Fabricators . | . . . . . . . . . . . . . . . . . . . . . . . . . . . Repair Stations . | . . . . . . . . . . . . . . . . . . . . . . . . . . . Recycling Units . | . . . . . . . . . . . . . . . . . . . . . . . . . . . Scanalyzers 8 | . . . . . . . . . . . . . . . . . . . . 3 1 1 1 1 1 . Garrison Access 5 | . . . . . . . . . . 1 . . . . 1 . . . . . 1 . 1 1 . . Total Hacks 112 | . . 6 . 1 . . . 23 . 6 . . 16 . 7 5 . 7 . 6 7 3 10 10 2 3 Successful 74 | . . 6 . 1 . . . 23 . 1 . . 16 . 2 5 . 7 . 1 1 1 3 6 . 1 Failed 36 | . . . . . . . . . . 5 . . . . 5 . . . . 4 6 2 6 4 2 2 Catastrophic 14 | . . . . . . . . . . 3 . . . . 1 . . . . 2 1 . 3 3 1 . Database Lockouts 2 | . . . . . . . . . . . . . . . . . . . . 1 . . 1 . . . Manual 14 | . . . . . . . . . . 1 . . . . 6 . . 1 . 1 1 . . 2 . 2 Terminals 29 | . . . . . . . . . . 5 . . . . 6 . . . . 1 3 . 5 6 . 3 Fabricators . | . . . . . . . . . . . . . . . . . . . . . . . . . . . Repair Stations . | . . . . . . . . . . . . . . . . . . . . . . . . . . . Recycling Units . | . . . . . . . . . . . . . . . . . . . . . . . . . . . Scanalyzers 19 | . . . . . . . . . . . . . . . . . . . . 5 2 3 4 3 2 . Garrison Access 6 | . . . . . . . . . . 1 . . . . 1 . . . . . 2 . 1 1 . . Terminal Hacks 64 | . . 6 . 1 . . . 23 . 1 . . 16 . 1 5 . 7 . . 1 . . 2 . 1 Record 20 | . . 5 . . . . . 6 . . . . 5 . . 4 . . . . . . . . . . Part Schematic 12 | . . . . . . . . 9 . . . . 3 . . . . . . . . . . . . . Robot Schematic 5 | . . . . . . . . 5 . . . . . . . . . . . . . . . . . . Robot Analysis 4 | . . . . . . . . . . . . . 4 . . . . . . . . . . . . . Prototype ID Bank 14 | . . . . . . . . 3 . . . . 4 . . . . 6 . . 1 . . . . . Open Door 4 | . . . . 1 . . . . . . . . . . . 1 . 1 . . . . . . . 1 Branch Access Points 2 | . . . . . . . . . . 1 . . . . 1 . . . . . . . . . . . Alert Level 1 | . . . . . . . . . . . . . . . . . . . . . . . . 1 . . Unreport Threat 1 | . . . . . . . . . . . . . . . . . . . . . . . . 1 . . Proto ID Catalog 1 | . . 1 . . . . . . . . . . . . . . . . . . . . . . . . Fabricator Hacks . | . . . . . . . . . . . . . . . . . . . . . . . . . . . Repair Station Hacks . | . . . . . . . . . . . . . . . . . . . . . . . . . . . Recycling Unit Hacks . | . . . . . . . . . . . . . . . . . . . . . . . . . . . Scanalyzer 6 | . . . . . . . . . . . . . . . . . . . . 1 . 1 2 2 . . Retrieve Study 6 | . . . . . . . . . . . . . . . . . . . . 1 . 1 2 2 . . Garrison Access Hacks 3 | . . . . . . . . . . . . . . . 1 . . . . . . . 1 1 . . Seal Access 3 | . . . . . . . . . . . . . . . 1 . . . . . . . 1 1 . . Unauthorized Hacks 1 | . . . . . . . . . . . . . . . . . . . . . . . . 1 . . Terminals 1 | . . . . . . . . . . . . . . . . . . . . . . . . 1 . . Botnet 1 | . . . . . . . . . . . . . . . . . . . . . . . . 1 . . Fabricators . | . . . . . . . . . . . . . . . . . . . . . . . . . . . Repair Stations . | . . . . . . . . . . . . . . . . . . . . . . . . . . . Recycling Units . | . . . . . . . . . . . . . . . . . . . . . . . . . . . Scanalyzers . | . . . . . . . . . . . . . . . . . . . . . . . . . . . Garrison Access . | . . . . . . . . . . . . . . . . . . . . . . . . . . . Data Cores Recovered 1 | . . . . . . . . . . . . . . . . . . . . 1 . . . . . . Used . | . . . . . . . . . . . . . . . . . . . . . . . . . . . Hacking Detections 22 | . . . . . . . . . . 2 . . . . 1 . . . . 3 4 1 4 4 1 2 Full Trace Events 2 | . . . . . . . . . . . . . . . . . . . . . 1 . 1 . . . Feedback Events . | . . . . . . . . . . . . . . . . . . . . . . . . . . . Feedback Blocked . | . . . . . . . . . . . . . . . . . . . . . . . . . . . Robot Schematics Acquired 5 | . . . . . . . . 5 . . . . . . . . . . . . . . . . . . Robots Built . | . . . . . . . . . . . . . . . . . . . . . . . . . . . Authchips . | . . . . . . . . . . . . . . . . . . . . . . . . . . . Time . | . . . . . . . . . . . . . . . . . . . . . . . . . . . Total Robot Build Rating . | . . . . . . . . . . . . . . . . . . . . . . . . . . . Part Schematics Acquired 12 | . . . . . . . . 9 . . . . 3 . . . . . . . . . . . . . Parts Built . | . . . . . . . . . . . . . . . . . . . . . . . . . . . Authchips . | . . . . . . . . . . . . . . . . . . . . . . . . . . . Time . | . . . . . . . . . . . . . . . . . . . . . . . . . . . Total Part Build Rating . | . . . . . . . . . . . . . . . . . . . . . . . . . . . Part Studies Acquired 6 | . . . . . . . . . . . . . . . . . . . . 1 . 1 2 2 . . Parts Repaired . | . . . . . . . . . . . . . . . . . . . . . . . . . . . Time . | . . . . . . . . . . . . . . . . . . . . . . . . . . . Parts Recycled . | . . . . . . . . . . . . . . . . . . . . . . . . . . . Recycled Matter . | . . . . . . . . . . . . . . . . . . . . . . . . . . . Retrieved Matter . | . . . . . . . . . . . . . . . . . . . . . . . . . . . Retrieved Components . | . . . . . . . . . . . . . . . . . . . . . . . . . . . Parts Scanalyzed . | . . . . . . . . . . . . . . . . . . . . . . . . . . . Part Schematics Acquired . | . . . . . . . . . . . . . . . . . . . . . . . . . . . Parts Damaged . | . . . . . . . . . . . . . . . . . . . . . . . . . . . Bothacking | -11 -10 -10 -9 -9 -6 -6 -6 -6 -5 -5 -5 -5 -5 -4 -4 -4 -4 -4 -3 -3 -3 -3 -2 -2 -1 -1 ------------ Run | Yrd Mat Sub Rec Scr Fac Low Low Dat Pro Fac Upp Upp Zhi Pro Fac Upp Upp War Pro Res Qua Sec Res Tes Acc Com Used RIF Installer . | . . . . . . . . . . . . . . . . . . . . . . . . . . . Robots Hacked . | . . . . . . . . . . . . . . . . . . . . . . . . . . . Non-combat . | . . . . . . . . . . . . . . . . . . . . . . . . . . . Combat . | . . . . . . . . . . . . . . . . . . . . . . . . . . . Robot Hacks Applied . | . . . . . . . . . . . . . . . . . . . . . . . . . . . Relay Couplers Released 3 | . . . . . 3 . . . . . . . . . . . . . . . . . . . . . Programmers 3 | . . . . . 3 . . . . . . . . . . . . . . . . . . . . . Fabnet Peak Effective % . | . . . . . . . . . . . . . . . . . . . . . . . . . . . Robots Rewired 7 | . . . . . . . . . 2 . . . . . . . . 5 . . . . . . . . Allies Hacked . | . . . . . . . . . . . . . . . . . . . . . . . . . . . Hacks Repelled . | . . . . . . . . . . . . . . . . . . . . . . . . . . . Allies | -11 -10 -10 -9 -9 -6 -6 -6 -6 -5 -5 -5 -5 -5 -4 -4 -4 -4 -4 -3 -3 -3 -3 -2 -2 -1 -1 -------- Run | Yrd Mat Sub Rec Scr Fac Low Low Dat Pro Fac Upp Upp Zhi Pro Fac Upp Upp War Pro Res Qua Sec Res Tes Acc Com Total Allies 121 | . . 1 . . . . 4 . 9 10 . 9 . 6 10 6 5 5 5 2 . . . . . 49 Largest Group 43 | . . 1 . . . . 4 2 4 4 . 4 . 4 5 4 4 5 4 4 . . . . . 43 Highest-Rated Group 607 | . . 19 . . . . 324 144 324 324 . 324 . 324 360 320 324 293 318 318 . . . . . 607 Highest-Rated Ally 96 | . . 19 . . . . 81 81 96 81 . 81 . 81 81 81 81 68 81 81 . . . . . 15 Initial UFD Resources 36 | . . . . . 23 23 23 23 26 26 26 26 26 28 28 28 28 28 31 31 31 31 33 33 36 36 Total Orders 8 | . . . . . . . . . . . . . . . . . . 4 . . . . . . 4 . STAY 2 | . . . . . . . . . . . . . . . . . . 2 . . . . . . . . FOLLOW 2 | . . . . . . . . . . . . . . . . . . 2 . . . . . . . . RETURN 4 | . . . . . . . . . . . . . . . . . . . . . . . . . 4 . Ally Attacks 471 | . . 6 . . . . 17 . 67 61 . 36 . 12 114 18 24 6 24 8 . . . . . 78 Total Damage 14929 | . . 89 . . . . 769 . 2143 1583 . 1439 . 635 3516 389 1143 577 671 259 . . . . . 1716 Kills 90 | . . 2 . . . . 8 . 12 13 . 12 . 4 17 6 4 2 4 2 . . . . . 4 Allies Corrupted 1 | . . . . . . . . . . . . . . . . . . . . . . . . . 1 . Allies Melted 2 | . . . . . . . . . . . . 2 . . . . . . . . . . . . . . Intel | -11 -10 -10 -9 -9 -6 -6 -6 -6 -5 -5 -5 -5 -5 -4 -4 -4 -4 -4 -3 -3 -3 -3 -2 -2 -1 -1 ------- Run | Yrd Mat Sub Rec Scr Fac Low Low Dat Pro Fac Upp Upp Zhi Pro Fac Upp Upp War Pro Res Qua Sec Res Tes Acc Com Active Infowar (turns) 10227 | . . 1446 . . 637 1079 473 98 863 904 816 443 222 573 1252 604 721 . . 3 . . 43 . . 50 Optics 10131 | . . 1446 . . 637 1079 473 98 863 904 816 443 222 573 1252 604 721 . . . . . . . . . IFF 1912 | . . . . . . . . . . 189 776 72 214 557 101 . . . . . . . 3 . . . Traps 2 | . . . . . . . . . . . . . . . 2 . . . . . . . . . . . Cloaking 1 | . . . . . . . . . . . . . . . . . . . . . . . 1 . . . Jamming 1 | . . . . . . . . . . . . . . . . . . . . 1 . . . . . . ECM 128 | . . . . . . . . . . . 1 36 . . . . . . . 2 . . 39 . . 50 Robot Analysis Total 4 | . . . . . . . . . . . . . 4 . . . . . . . . . . . . . Derelict Logs Recovered 16 | . . 1 . 5 . 2 1 . 1 . 2 2 . 1 . 1 . . . . . . . . . . Drone Launches 5 | . . . . . . . . . . . . . . . . . . . . . . . . . 5 . Drone Recoveries 4 | . . . . . . . . . . . . . . . . . . . . . . . . . 4 . Exploration | -11 -10 -10 -9 -9 -6 -6 -6 -6 -5 -5 -5 -5 -5 -4 -4 -4 -4 -4 -3 -3 -3 -3 -2 -2 -1 -1 ------------- Run | Yrd Mat Sub Rec Scr Fac Low Low Dat Pro Fac Upp Upp Zhi Pro Fac Upp Upp War Pro Res Qua Sec Res Tes Acc Com Turns Passed 25889 | 28 94 3899 84 988 930 1079 473 98 863 904 816 443 222 573 1252 604 798 1091 404 1124 1930 993 1248 872 796 3283 Spaces Moved 17203 | 36 131 1600 65 803 605 823 338 82 536 620 646 317 161 362 856 444 623 846 310 707 1313 566 940 674 550 2249 Core 186 | 35 131 20 . . . . . . . . . . . . . . . . . . . . . . . . Treads 1480 | 1 . 1479 . . . . . . . . . . . . . . . . . . . . . . . . Legs 14129 | . . . . . 166 823 338 82 536 620 646 317 161 362 856 444 623 846 310 707 1313 566 940 674 550 2249 Wheels 1408 | . . 101 65 803 439 . . . . . . . . . . . . . . . . . . . . . Hover . | . . . . . . . . . . . . . . . . . . . . . . . . . . . Flight . | . . . . . . . . . . . . . . . . . . . . . . . . . . . Fastest Speed 50 | 50 50 120 120 120 85 120 120 120 120 120 120 120 120 120 120 122 122 114 114 102 100 110 101 103 114 105 Average Speed 123 | 53 50 225 120 121 94 120 120 120 120 120 120 120 120 120 120 122 122 120 114 107 109 110 102 110 115 109 Slowest Speed 800 | 160 50 800 120 130 120 120 120 120 190 122 120 120 120 120 122 122 122 122 114 115 115 115 111 118 118 120 Overloaded Moves . | . . . . . . . . . . . . . . . . . . . . . . . . . . . Propulsion Burnouts . | . . . . . . . . . . . . . . . . . . . . . . . . . . . Robots Hopped . | . . . . . . . . . . . . . . . . . . . . . . . . . . . Potential Cave-ins . | . . . . . . . . . . . . . . . . . . . . . . . . . . . Cave-ins Triggered . | . . . . . . . . . . . . . . . . . . . . . . . . . . . Teleports 1 | . . . . . . . . . . . . . . . . . . . . . . . . 1 . . Exploration Rate (%) 51 | 3 24 77 10 69 26 87 66 75 64 18 78 52 61 62 22 61 74 88 44 26 92 27 29 75 19 62 Regions Visited 26 Branch Regions 19 Pre-discovered Areas 8 | . . 2 . 1 . . . 1 . . . . 3 . . 1 . . . . . . . . . . Known Exits Taken 10 | . . 1 . . 1 1 1 1 1 1 . . . . 1 . . . 1 . . 1 . . . . Unknown Exits Taken 16 | 1 1 . 1 1 . . . . . . 1 1 1 1 . 1 1 1 . 1 1 . 1 1 1 . Scrap Searched 20 | . . 7 . 1 . 4 1 . . . 2 . . 1 . 1 3 . . . . . . . . . Spaces Dug 97 | . . 2 . . 3 3 . . . 7 5 . . 3 2 2 . . 3 10 4 14 13 6 5 15 Terrain Destroyed 184 | . . 87 . . 3 3 . . . 7 5 . . 3 2 2 . . 3 10 4 14 13 6 5 17 Melee 93 | . . . . . 3 3 . . . 7 5 . . 3 2 2 . . 3 10 4 14 13 6 5 13 Projectile 21 | . . 17 . . . . . . . . . . . . . . . . . . . . . . . 4 AOE 70 | . . 70 . . . . . . . . . . . . . . . . . . . . . . . . Terrain Rammed . | . . . . . . . . . . . . . . . . . . . . . . . . . . . Walls Destroyed . | . . . . . . . . . . . . . . . . . . . . . . . . . . . Machines Disabled . | . . . . . . . . . . . . . . . . . . . . . . . . . . . Actions | -11 -10 -10 -9 -9 -6 -6 -6 -6 -5 -5 -5 -5 -5 -4 -4 -4 -4 -4 -3 -3 -3 -3 -2 -2 -1 -1 --------- Run | Yrd Mat Sub Rec Scr Fac Low Low Dat Pro Fac Upp Upp Zhi Pro Fac Upp Upp War Pro Res Qua Sec Res Tes Acc Com Total 20918 | 42 152 1751 72 822 846 880 392 81 697 717 671 360 181 480 999 491 653 924 350 988 1679 896 1240 808 724 3022 Wait 1677 | . 17 21 3 . 87 23 39 . 72 17 2 21 1 93 35 33 13 15 29 134 146 210 125 25 68 448 Move 17176 | 35 130 1599 64 802 604 822 337 81 535 619 645 316 160 361 855 443 622 845 309 706 1312 565 939 673 549 2248 Hop . | . . . . . . . . . . . . . . . . . . . . . . . . . . . Pick Up 142 | 3 2 14 . 10 19 3 1 . 4 6 2 . 1 2 8 1 . 9 . 7 13 4 2 7 1 23 Fast Attach 161 | 4 . 5 . 1 13 2 . . 6 3 3 2 6 . 13 . 3 8 . 5 21 18 6 16 3 23 Attach 105 | . . 5 . . 16 1 . . 9 9 1 1 . 1 6 . . 1 . 11 12 4 1 2 1 24 Detach 65 | . . 3 2 . 5 2 . . 6 6 1 1 1 . 10 . 1 2 . 3 11 1 2 4 . 4 Swap 115 | . . 20 1 . 4 3 4 . 3 6 3 5 1 5 2 2 2 3 . 4 7 1 16 5 8 10 Drop 193 | . . 4 2 9 14 1 2 . 6 5 4 1 5 4 11 1 3 15 . 9 17 18 18 17 9 18 Fire 100 | . 3 80 . . . . . . . . . . . . . . . . . . . . . . . 17 Melee 1141 | . . . . . 84 23 9 . 43 46 10 13 6 14 59 11 9 . 12 105 140 75 131 59 85 207 Ram . | . . . . . . . . . . . . . . . . . . . . . . . . . . . Kick 1 | . . . . . . . . . . . . . . . . . . . . 1 . . . . . . Crush . | . . . . . . . . . . . . . . . . . . . . . . . . . . . Escape Stasis 3 | . . . . . . . . . . . . . . . . . . . . 3 . . . . . . Rewire 38 | . . . . . . . . . 12 . . . . . . . . 26 . . . . . . . . Trap . | . . . . . . . . . . . . . . . . . . . . . . . . . . . Miscellaneous 1 | . . . . . . . . . 1 . . . . . . . . . . . . . . . . . Route ------- -11/Scrapyard -10/Materials (discovered 2 exits: [*Mat] / *Sub) -10/Subcaves (discovered 3 exits: [*Mat x2] / *Rec) -9/Recycling -9/Scraptown -6/Factory (discovered 3 exits: *Fac x2 / *Low) -6/Lower Caves (discovered 2 exits: *Low / *Dat) -6/Lower Caves (discovered 2 exits: *Fac / *Dat) -6/Data Miner -5/Proximity Caves -5/Factory (discovered 2 exits: *Upp x2) -5/Upper Caves -5/Upper Caves (discovered 2 exits: *Fac / *Zhi) -5/Zhirov -4/Proximity Caves -4/Factory (discovered 6 exits: *Res x3 / *Upp x2 / Arm) -4/Upper Caves -4/Upper Caves (discovered 2 exits: *Res / *War) -4/Warlord -3/Proximity Caves -3/Research (discovered 2 exits: Res / *Qua) -3/Quarantine (discovered 2 exits: *Sec / [*Frg]) -3/Section 7 -2/Research -2/Testing -1/Access -1/Command (discovered 2 exits: [*Sur x2]) To Fleet Rendezvous History --------- Turn | Location | Event 20 | -11/Scrapyard | Discovered new exit (range 15) 29 | -11/Scrapyard | Entered Materials 56 | -10/Materials | Discovered new exit (range 15) 121 | -10/Materials | Discovered new exit (range 5) 123 | -10/Materials | Entered Subcaves 124 | -10/Subcaves | Approached by a straggling Scientist 191 | -10/Subcaves | Identified exit to Recycling 316 | -10/Subcaves | Build established: Mutant 340 | -10/Subcaves | Discovered new exit (range 8) 354 | -10/Subcaves | Disturbed a concealed Subdweller 582 | -10/Subcaves | Visited 4L-MR0's lab 609 | -10/Subcaves | Found Prototype Device 615 | -10/Subcaves | Found Maxwheels 1350 | -10/Subcaves | Shifting Twisted Machinery released Enh. Flamer 1354 | -10/Subcaves | Shifting Twisted Machinery released Sub. Machine Gun 1846 | -10/Subcaves | Core integrity fell below 50% 2414 | -10/Subcaves | A swath of the cavern ceiling suddenly collapsed 2844 | -10/Subcaves | Shifting Twisted Machinery released Sub. Machine Gun 2870 | -10/Subcaves | Shifting Twisted Machinery released Sub. Monowheel 3129 | -10/Subcaves | Shifting Twisted Machinery released Sub. Monowheel 3237 | -10/Subcaves | Discovered new exit (range 5) 3248 | -10/Subcaves | Shifting Twisted Machinery released Battle Cannon 3410 | -10/Subcaves | Visited triangular shrine 3426 | -10/Subcaves | Found Prototype Device 3426 | -10/Subcaves | Identified V3-11A's Pendant 3431 | -10/Subcaves | Befriended Subdweller 3679 | -10/Subcaves | Core integrity fell below 20% 3921 | -10/Subcaves | Visited Clippyterm 3924 | -10/Subcaves | Learned location of Extension (-6) 3924 | -10/Subcaves | Learned location of Section 7 (-3) 4022 | -10/Subcaves | Entered Recycling 4044 | -9/Recycling | Scanned before Scraplab entrance 4094 | -9/Recycling | Entered Scraplab 4103 | -9/Recycling | Discovered new exit (range 2) 4106 | -9/Recycling | Entered Scraptown 4106 | -9/Scraptown | System corruption cleaned by C-Scrubber 4199 | -9/Scraptown | Scanned Subdweller tech in exchange for log data 4201 | -9/Scraptown | Learned location of 1 exit from Research 4202 | -9/Scraptown | Learned Research interactive machine intel 4204 | -9/Scraptown | Learned 8 Research zone layouts 4205 | -9/Scraptown | Learned location of 1 exit from Factory 4206 | -9/Scraptown | Learned location of Armory (-4) 4372 | -9/Scraptown | Delivered V3-11A's Pendant to T0-NE2 in exchange for information 4429 | -9/Scraptown | Heard Great Nut preacher, LISTEN AND RECITE! 4591 | -9/Scraptown | Visited UFD Registry 4591 | -9/Scraptown | Registered with UFD as "Spikefunk" 4664 | -9/Scraptown | Visited Research Penetration Think Tank 4706 | -9/Scraptown | Received an X-ray algorithm 4728 | -9/Scraptown | Visited Junk Repository 4841 | -9/Scraptown | Delivered Scrap Shield to a Scientist 4900 | -9/Scraptown | Visited Scrapoid Research Area 4916 | -9/Scraptown | Visited Derelict Rescue Squad 4924 | -9/Scraptown | Found DRS Beacon 4972 | -9/Scraptown | Visited Sword Containment 4988 | -9/Scraptown | Found Prototype Slashing Weapon 4988 | -9/Scraptown | Identified Companion Sword 5090 | -9/Scraptown | Discovered new exit (range 3) 5094 | -9/Scraptown | Entered Factory 5094 | -6/Factory | Evolved 8 slots: Propulsion x2, Utility x6 5095 | -6/Factory | Identified exit to Factory 5097 | -6/Factory | Attached Maxwheels, gained temporary slots: Weapon x2 5724 | -6/Factory | Lost 3 parts (1p2u) 5775 | -6/Factory | Core integrity fell below 50% 5974 | -6/Factory | Lost 3 parts (1p1n1u) 5974 | -6/Factory | Discovered new exit (range 14) 6018 | -6/Factory | Identified exit to Lower Caves 6022 | -6/Factory | Build established: Scavenger-Mutant 6022 | -6/Factory | Discovered exit to Factory (range 11) 6024 | -6/Factory | Entered Lower Caves 6026 | -6/Lower Caves | UFD Scientist delivered a prototype 6033 | -6/Lower Caves | Found Prototype Protection 6033 | -6/Lower Caves | Identified Enh. Scrap Shield 6060 | -6/Lower Caves | Entered a destroyed Warlord outpost 6092 | -6/Lower Caves | Identified exit to Lower Caves 6334 | -6/Lower Caves | A Derelict revealed a hidden shortcut to meet someone special 6337 | -6/Lower Caves | Identified exit to Data Miner 6399 | -6/Lower Caves | Encountered a Warlord checkpoint 6925 | -6/Lower Caves | Learned Factory terminal intel 7103 | -6/Lower Caves | Entered another Lower Caves area 7173 | -6/Lower Caves | Discovered exit to Factory (range 10) 7176 | -6/Lower Caves | Prototype Device suddenly appears! 7184 | -6/Lower Caves | Build established: Mutant 7216 | -6/Lower Caves | Found Prototype Device 7218 | -6/Lower Caves | Identified Amulet of Y3-NDR 7243 | -6/Lower Caves | Joined by bewildered Wizard 7243 | -6/Lower Caves | Joined by bewildered Wizard 7243 | -6/Lower Caves | Joined by bewildered Wizard 7263 | -6/Lower Caves | Joined by bewildered Wizard 7480 | -6/Lower Caves | Encountered an infested base 7576 | -6/Lower Caves | Entered Data Miner 7576 | -6/Data Miner | Accompanied by 2 allies 7576 | -6/Data Miner | Discovered new exit (range 6) 7592 | -6/Data Miner | Met Data Miner 7623 | -6/Data Miner | Acquired the access code to Warlord's prototype stash 7640 | -6/Data Miner | Received God Mode back door access code from Data Miner 7672 | -6/Data Miner | Identified exit to Proximity Caves 7674 | -6/Data Miner | Entered Proximity Caves 7674 | -5/Proximity Caves | Accompanied by 2 allies 7753 | -5/Proximity Caves | Joined by bewildered Wizard 7757 | -5/Proximity Caves | Joined by bewildered Wizard 7765 | -5/Proximity Caves | Joined by bewildered Wizard 7766 | -5/Proximity Caves | Joined by bewildered Wizard 7773 | -5/Proximity Caves | Attracted the attention of an 0b10 outpost 7814 | -5/Proximity Caves | Lost 4 allies 7815 | -5/Proximity Caves | System corruption reached 10% 8052 | -5/Proximity Caves | Escorted by Enhanced Grunt 8135 | -5/Proximity Caves | Build established: Scavenger-Mutant 8197 | -5/Proximity Caves | Activated DRS Beacon 8222 | -5/Proximity Caves | Core integrity fell below 20% 8265 | -5/Proximity Caves | Lost 4 parts (2n2u) 8289 | -5/Proximity Caves | Spotted B-75 Beast 8353 | -5/Proximity Caves | Attracted the attention of an 0b10 checkpoint 8363 | -5/Proximity Caves | Discovered exit to Factory (range 5) 8437 | -5/Proximity Caves | Learned Factory garrison access intel 8537 | -5/Proximity Caves | Entered Factory 8537 | -5/Factory | Evolved 2 slots: Propulsion x1, Utility x1 8538 | -5/Factory | Loaded intel: 26 terminal locations 8539 | -5/Factory | Loaded intel: 3 garrison access locations 8647 | -5/Factory | Joined by bewildered Wizard 8648 | -5/Factory | Joined by bewildered Wizard 8665 | -5/Factory | Joined by bewildered Wizard 8666 | -5/Factory | Joined by bewildered Wizard 8679 | -5/Factory | Joined by bewildered Wizard 8760 | -5/Factory | Garrison activated, responded to threat 8777 | -5/Factory | Joined by bewildered Wizard 8777 | -5/Factory | Joined by bewildered Wizard 8778 | -5/Factory | Joined by bewildered Wizard 8799 | -5/Factory | Joined by bewildered Wizard 8838 | -5/Factory | Build established: Mutant 9095 | -5/Factory | Identified exit to Upper Caves 9406 | -5/Factory | Build established: Hacker-Mutant 9441 | -5/Factory | Entered Upper Caves 9682 | -5/Upper Caves | Learned location of 2 exits from Factory 9807 | -5/Upper Caves | Entered a destroyed Warlord outpost 10246 | -5/Upper Caves | Discovered new exit (range 5) 10257 | -5/Upper Caves | Entered another Upper Caves area 10276 | -5/Upper Caves | Joined by bewildered Wizard 10337 | -5/Upper Caves | Discovered new exit (range 8) 10363 | -5/Upper Caves | Joined by bewildered Wizard 10364 | -5/Upper Caves | Joined by bewildered Wizard 10372 | -5/Upper Caves | Learned Factory garrison access intel 10471 | -5/Upper Caves | Learned Factory terminal intel 10474 | -5/Upper Caves | Spotted B-75 Beast 10516 | -5/Upper Caves | Joined by bewildered Wizard 10517 | -5/Upper Caves | Joined by bewildered Wizard 10518 | -5/Upper Caves | Joined by bewildered Wizard 10562 | -5/Upper Caves | Lost 3 allies 10637 | -5/Upper Caves | Discovered new exit (range 14) 10659 | -5/Upper Caves | Attracted the attention of an 0b10 checkpoint 10700 | -5/Upper Caves | Entered Zhirov 10700 | -5/Zhirov | Discovered new exit (range 3) 10723 | -5/Zhirov | Met Zhirov 10754 | -5/Zhirov | Found Alien Artifact 10754 | -5/Zhirov | Identified Integrated Reactor 10754 | -5/Zhirov | Installed Integrated Reactor, increased core energy generation (+10) 10771 | -5/Zhirov | Found Alien Artifact 10879 | -5/Zhirov | Learned location of Quarantine (-3) 10879 | -5/Zhirov | Learned location of Testing (-2) 10879 | -5/Zhirov | Learned location of Command (-1) 10889 | -5/Zhirov | Zhirov requested help retrieving the SGEMP Prototype 10922 | -5/Zhirov | Entered Proximity Caves 10925 | -4/Proximity Caves | Learned Research stockpile data 11001 | -4/Proximity Caves | Joined by bewildered Wizard 11004 | -4/Proximity Caves | Joined by bewildered Wizard 11004 | -4/Proximity Caves | Joined by bewildered Wizard 11022 | -4/Proximity Caves | Joined by bewildered Wizard 11024 | -4/Proximity Caves | Joined by bewildered Wizard 11033 | -4/Proximity Caves | Joined by bewildered Wizard 11063 | -4/Proximity Caves | Build established: Mutant 11171 | -4/Proximity Caves | Lost 4 allies 11456 | -4/Proximity Caves | Discovered new exit (range 19) 11495 | -4/Proximity Caves | Entered Factory 11495 | -4/Factory | Evolved 2 slots: Utility x2 11496 | -4/Factory | Identified exit to Armory 11497 | -4/Factory | Identified exit to Research 11498 | -4/Factory | Loaded intel: 26 terminal locations 11499 | -4/Factory | Loaded intel: 4 garrison access locations 11700 | -4/Factory | Identified exit to Upper Caves 11959 | -4/Factory | Joined by bewildered Wizard 11959 | -4/Factory | Joined by bewildered Wizard 11959 | -4/Factory | Joined by bewildered Wizard 11979 | -4/Factory | Joined by bewildered Wizard 12039 | -4/Factory | Build established: Hacker-Mutant 12243 | -4/Factory | Spotted B-86 Titan 12265 | -4/Factory | Allies destroyed B-86 Titan 12292 | -4/Factory | Joined by bewildered Wizard 12369 | -4/Factory | P-70 Sage assimilated allied G-67 Veteran 12516 | -4/Factory | Joined by bewildered Wizard 12516 | -4/Factory | Joined by bewildered Wizard 12564 | -4/Factory | Joined by bewildered Wizard 12589 | -4/Factory | Build established: Mutant 12605 | -4/Factory | Discovered exit to Research (range 7) 12745 | -4/Factory | First assault squad dispatched 12747 | -4/Factory | Entered Upper Caves 12747 | -4/Upper Caves | Accompanied by 4 allies 12895 | -4/Upper Caves | Entered an active Warlord outpost 12912 | -4/Upper Caves | Learned 8 Research zone layouts 12912 | -4/Upper Caves | Learned Extension trap positions 12912 | -4/Upper Caves | Learned Extension garrison access intel 12952 | -4/Upper Caves | Joined by bewildered Wizard 12957 | -4/Upper Caves | Joined by bewildered Wizard 13029 | -4/Upper Caves | Joined by bewildered Wizard 13031 | -4/Upper Caves | Joined by bewildered Wizard 13032 | -4/Upper Caves | Joined by bewildered Wizard 13146 | -4/Upper Caves | Joined by bewildered Wizard 13288 | -4/Upper Caves | Discovered new exit (range 13) 13351 | -4/Upper Caves | Entered another Upper Caves area 13351 | -4/Upper Caves | Accompanied by 4 allies 13371 | -4/Upper Caves | Discovered exit to Research (range 8) 13434 | -4/Upper Caves | Joined by bewildered Wizard 13435 | -4/Upper Caves | Joined by bewildered Wizard 13488 | -4/Upper Caves | Joined by bewildered Wizard 13490 | -4/Upper Caves | Joined by bewildered Wizard 13552 | -4/Upper Caves | Attacked by a delusional Derelict stockpiling parts 13756 | -4/Upper Caves | Encountered a Warlord checkpoint 13989 | -4/Upper Caves | Joined by bewildered Wizard 14047 | -4/Upper Caves | Spotted B-86 Titan 14052 | -4/Upper Caves | Discovered new exit (range 17) 14056 | -4/Upper Caves | Destroyed B-86 Titan 14057 | -4/Upper Caves | Forged Quantum Companion 14086 | -4/Upper Caves | Lost 3 allies 14149 | -4/Upper Caves | Entered Warlord 14195 | -4/Warlord | System corruption cleaned by Quarantine Array 14754 | -4/Warlord | Warlord's base attacked by MAIN.C 14795 | -4/Warlord | Rebuked by Warlord 14868 | -4/Warlord | Build established: Commander-Mutant 14875 | -4/Warlord | Found Prototype Energy Cannon 14875 | -4/Warlord | Identified Vortex Cannon 15048 | -4/Warlord | Opened Warlord's prototype stash 15068 | -4/Warlord | Found Prototype Processor 15068 | -4/Warlord | Identified Exp. Armor Integrity Analyzer 15104 | -4/Warlord | Warlord forces counterattacked 15205 | -4/Warlord | Spotted Executioner 15219 | -4/Warlord | Discovered new exit (range 14) 15240 | -4/Warlord | Entered Proximity Caves 15269 | -3/Proximity Caves | Lost 5 allies 15365 | -3/Proximity Caves | Joined by bewildered Wizard 15365 | -3/Proximity Caves | Joined by bewildered Wizard 15397 | -3/Proximity Caves | Joined by bewildered Wizard 15397 | -3/Proximity Caves | Joined by bewildered Wizard 15515 | -3/Proximity Caves | Attracted the attention of an 0b10 checkpoint 15530 | -3/Proximity Caves | Build established: Scavenger-Mutant 15568 | -3/Proximity Caves | Joined by bewildered Wizard 15638 | -3/Proximity Caves | Discovered exit to Research (range 6) 15641 | -3/Proximity Caves | Attracted the attention of an 0b10 outpost 15644 | -3/Proximity Caves | Entered Research 15644 | -3/Research | Accompanied by 3 allies 15644 | -3/Research | Evolved 2 slots: Propulsion x1, Utility x1 15645 | -3/Research | Identified exit to Research 15648 | -3/Research | Loaded intel: 47 interactive machine locations 15676 | -3/Research | Joined by bewildered Wizard 15734 | -3/Research | Garrison activated, responded to threat 15747 | -3/Research | Joined by bewildered Wizard 16027 | -3/Research | Lost 3 parts (1p2n) 16086 | -3/Research | Destroyed 7 combat bots 16282 | -3/Research | Build established: Mutant 16430 | -3/Research | Central database locked down 16760 | -3/Research | Discovered new exit (range 9) 16768 | -3/Research | Entered Quarantine 16789 | -3/Quarantine | Cryocooling Duct disabled 16804 | -3/Quarantine | Ambient heat levels rising (+20) 16804 | -3/Quarantine | Non-combat units ordered to evacuate 17111 | -3/Quarantine | Found Adv. Powered Armor 17304 | -3/Quarantine | System corruption reached 10% 17684 | -3/Quarantine | Garrison activated, responded to threat 17891 | -3/Quarantine | Incoming investigation squad redirected 18061 | -3/Quarantine | Found Alien Artifact 18064 | -3/Quarantine | Identified Subatomic Replicator 18064 | -3/Quarantine | Forged Prototype Slashing Weapon 18109 | -3/Quarantine | Found Alien Artifact 18115 | -3/Quarantine | Found Alien Artifact 18337 | -3/Quarantine | Found Alien Artifact 18337 | -3/Quarantine | Identified Core Reset Matrix 18337 | -3/Quarantine | Identified Terrabomb (x2) 18337 | -3/Quarantine | Identified Transdimensional Reconstructor 18337 | -3/Quarantine | Used Core Reset Matrix 18341 | -3/Quarantine | Detected hypermatrix surge 18341 | -3/Quarantine | Sensed 5 artifacts in vicinity 18433 | -3/Quarantine | Found Core Stripper 18452 | -3/Quarantine | Build established: Scavenger-Mutant 18489 | -3/Quarantine | Found Matter Drive 18526 | -3/Quarantine | Spotted Fortress 18570 | -3/Quarantine | Destroyed Fortress 18581 | -3/Quarantine | Found Prototype Protection 18584 | -3/Quarantine | Found Unknown Protection 18589 | -3/Quarantine | Identified Centrium Heavy Armor Plating 18590 | -3/Quarantine | Identified Hvy. Insulated Plating 18602 | -3/Quarantine | Found Prototype Device 18602 | -3/Quarantine | Identified Exp. Force Field 18606 | -3/Quarantine | Found Prototype Device 18606 | -3/Quarantine | Identified Thermal Barrier 18613 | -3/Quarantine | Found Prototype Device 18613 | -3/Quarantine | Identified Exp. EM Shield 18692 | -3/Quarantine | Discovered new exit (range 6) 18692 | -3/Quarantine | Discovered new exit (range 7) 18698 | -3/Quarantine | Entered Section 7 18699 | -3/Section 7 | Detected hypermatrix surge 18699 | -3/Section 7 | Sensed 20 artifacts in vicinity 18927 | -3/Section 7 | Found Integrated Dissipator 18927 | -3/Section 7 | Installed Integrated Dissipator, increased core heat dissipation (+20) 19109 | -3/Section 7 | Found Core Membrane 19109 | -3/Section 7 | Installed Core Membrane, gained immunity to corruption 19180 | -3/Section 7 | Spotted S7 Guard 19220 | -3/Section 7 | Build established: Alien-Mutant 19254 | -3/Section 7 | Discovered exit to Research (range 15) 19299 | -3/Section 7 | Destroyed S7 Guard 19447 | -3/Section 7 | Found Integrated Reactor 19447 | -3/Section 7 | Installed Integrated Reactor, increased core energy generation (+10) 19482 | -3/Section 7 | Spotted B-86 Titan 19577 | -3/Section 7 | Found Integrated Dissipator 19577 | -3/Section 7 | Installed Integrated Dissipator, increased core heat dissipation (+20) 19691 | -3/Section 7 | Entered Research 19691 | -2/Research | Evolved 2 slots: Utility x2 19732 | -2/Research | Central database locked down 19942 | -2/Research | Spotted B-90 Cyclops 20191 | -2/Research | First assault squad dispatched 20206 | -2/Research | Incoming assault squad redirected 20212 | -2/Research | Destroyed B-90 Cyclops 20354 | -2/Research | Destroyed 12 combat bots 20373 | -2/Research | Build established: Scavenger-Mutant 20469 | -2/Research | Incoming assault squad redirected 20477 | -2/Research | Destroyed 9 combat bots 20791 | -2/Research | Incoming investigation squad redirected 20835 | -2/Research | Discovered new exit (range 14) 20939 | -2/Research | Entered Testing 20993 | -2/Testing | Found Prototype Energy Cannon 20993 | -2/Testing | Identified Cld. Nova Cannon 21046 | -2/Testing | Spotted Striker 21097 | -2/Testing | Spotted PD-6SB2JNGPDS 21102 | -2/Testing | Warped through subspace 21102 | -2/Testing | Spotted Alpha 7 21103 | -2/Testing | Spotted Striker 21113 | -2/Testing | Destroyed Alpha 7 21125 | -2/Testing | Destroyed Striker 21126 | -2/Testing | Destroyed Striker 21136 | -2/Testing | Found Prototype Processor 21136 | -2/Testing | Identified Exp. Targeting Computer 21149 | -2/Testing | Lost 5 parts (3n2u) 21153 | -2/Testing | Found Centrium Heavy Armor Plating 21189 | -2/Testing | First assault squad dispatched 21219 | -2/Testing | Incoming assault squad redirected 21278 | -2/Testing | Found Prototype Device 21278 | -2/Testing | Identified AEGIS Remote Shield 21311 | -2/Testing | Discovered new exit (range 9) 21704 | -2/Testing | Found Prototype Ballistic Cannon 21704 | -2/Testing | Identified Perforator 21786 | -2/Testing | Destroyed 8 combat bots 21806 | -2/Testing | Build established: Alien-Mutant 21811 | -2/Testing | Entered Access 21811 | -1/Access | Evolved 2 slots: Utility x2 22183 | -1/Access | Destroyed 7 combat bots 22544 | -1/Access | Destroyed 11 combat bots 22599 | -1/Access | Discovered new exit (range 7) 22607 | -1/Access | Entered Command 22612 | -1/Command | Spotted B-99 Colossus 22695 | -1/Command | Destroyed 8 combat bots 22708 | -1/Command | Destroyed B-99 Colossus 22857 | -1/Command | First assault squad dispatched 22934 | -1/Command | Spotted M Guard 22935 | -1/Command | Spotted M Guard 22935 | -1/Command | Spotted Combat Programmer 22936 | -1/Command | Spotted Combat Programmer 22986 | -1/Command | Destroyed Combat Programmer 22995 | -1/Command | Destroyed M Guard 22995 | -1/Command | All MAIN.C guards destroyed 23024 | -1/Command | Lost 13 parts (3p2n8u) 23034 | -1/Command | Destroyed 8 combat bots 23145 | -1/Command | Lost 3 parts (1p1n1u) 23494 | -1/Command | Spotted Executioner 23499 | -1/Command | Spotted Alpha 7 23507 | -1/Command | Core integrity fell below 50% 23508 | -1/Command | Destroyed Executioner 23513 | -1/Command | Destroyed Alpha 7 23526 | -1/Command | Found Prototype Processor 23526 | -1/Command | Identified Exp. Core Analyzer 23530 | -1/Command | Found Prototype Processor 23530 | -1/Command | Identified Exp. Target Analyzer 23627 | -1/Command | Incoming assault squad redirected 23806 | -1/Command | Met MAIN.C 23820 | -1/Command | 0b10 Conduit disabled 23857 | -1/Command | Destroyed MAIN.C Shell 23858 | -1/Command | MAIN.C activated Command garrisons 23859 | -1/Command | Build established: Scavenger-Mutant 23865 | -1/Command | Emitted hypermatrix ping 23866 | -1/Command | Found Centrium Heavy Armor Plating 23870 | -1/Command | Assembled emerged from beneath the floor 23888 | -1/Command | Core integrity fell below 20% 23902 | -1/Command | Destroyed MAIN.C 23904 | -1/Command | Discovered new exit (range 47) 23904 | -1/Command | Discovered new exit (range 102) 23904 | -1/Command | Extracted map data and part IDs from MAIN.C's data core 23907 | -1/Command | Found Zero-point Reactor 23927 | -1/Command | Lost 13 parts (3p4n6u) 24001 | -1/Command | Lost 3 allies 24054 | -1/Command | Used Terrabomb 24063 | -1/Command | Found Hvy. Regenerative Plating 24065 | -1/Command | Found Hvy. Regenerative Plating 24081 | -1/Command | Found Exp. Phase Shifter 24410 | -1/Command | Assembled emerged from beneath the floor 24439 | -1/Command | Assembled emerged from beneath the floor 24783 | -1/Command | Assembled emerged from beneath the floor 24962 | -1/Command | Assembled emerged from beneath the floor 25132 | -1/Command | Assembled emerged from beneath the floor 25179 | -1/Command | Assembled emerged from beneath the floor 25890 | *** | Heading to fleet! Last Messages --------------- 25714_ Field strength at 37. 25715_ Field strength at 58. 25715_ Field strength at 30. 25716_ Field strength at 23. 25717_ Field strength at 51. 25717_ Field strength at 16. 25718_ Field strength at 9. 25719_ Field strength at 44. 25719_ Field strength at 2. 25720_ Stasis field depleted. 25721_ Field strength at 37. 25722_ Field strength at 30. 25723_ Field strength at 23. 25724_ Field strength at 16. 25726_ Field strength at 9. 25728_ Field strength at 2. 25730_ Stasis field depleted. Map ----- +----------------------------------------------------+ | | | | | | | | | | | | | | | | | | | | | | | ?????????????????????????????????????????????????? | | ?????????????????????????????????????????????????? | | ?????????????????????????????????????????????????# | | ########?????????????????????????????????????????# | | = #?????????????????????????????????????##### | | #?????????????????????????????????????# | | #?????????????????????????????????????# | | "" "" #?????????################????????????# | | ""R"" #?????????################?????????#### | | """" ############ ##?????????# # | | ######!##### ##????????## # | | ####%*=#%;!# ^^^ ^ ^^ ##?????#### | | ##+#+####%%^^%^^^!^! ^ a ^ ##?????# "" | | ?# /^^^^^^^^^^ aaaaaa ^ ##?????#""" | | ?# !/% ^^^^*^^^ ^aaa@aa ##?????#"R # | | ?# */^%%%=*^^^^aa^aaa"aa^ ##?????#""" # | | ?# =/^^^^ ^ ^aa^aaaaaa ##?????#""" # | | ?# ###^^^^^ ^ ^aaaaaa^ ########### ] # | | ?# #?###%# ; ;%;! ^^aaaa^^ ### #??# # | | ?# #?##########!%[ aaaaaa ###! #### # | | ?# #?###########!% ### + # | | ?# #??# #????################# # ]] # | | ?# ##?# #????################# # ] # | | ?# "###""########??????############# # | | ?# " #??????# #?# # | | ?# " / ##?????# ### # | | ?# # ! "####### + + | | ?# #### + + ### ] # | | ?#[#??# " #####+#####?# # | | ?#%#??######+####+## ##### #?????# # | | ##/###????# #?????# ##### # | | #????# #????##+##### # | | #????# ! ]##???# # | | #????# """" "" "##### """ # | | #????# """" """" # """" # | | !! #????# "" " """ + """T # | | !! #????#=[=!% " # """ # | | ######????#!!!! ! % %# # | | ????????###%!!! %* = "####### | +----------------------------------------------------+ Best States ------------- Heat Dissipation 92 Coolant Potential 50 Energy Generation 53 Energy Capacity 840 Matter Stores 300 Matter Capacity 300 Sight Range 22 Terrain Scan Density 10 ECM Strength 2 Power Amplification 30 Additional Mass Support 9 Armor Coverage 2025 Resistance: TH 50 Weapon Shielding 90 Point Defense Rating 240 Melee Speed Boost 50 Phase Shifting 20 Evasion (%) 78 Targeting Accuracy 8 Melee Accuracy 48 Core Analysis 11 Armor Integrity Analysis 50 Recoil Reduction 2 Matter Filtering 30 Offensive Hacking 28 Defensive Hacking 12 Item Schematics ----------------- None Robot Schematics ------------------ None Fabricated ------------ Nothing Repaired ---------- Nothing Studied --------- Myomer Leg | -3/Section 7 | Hacked Biometal Leg | -2/Research | Hacked Flexi-carbon Leg | -2/Research | Hacked Particle Reactor | -2/Testing | Hacked Quantum Reactor | -2/Testing | Hacked Alien Tech Used ----------------- Integrated Reactor Subatomic Replicator Core Reset Matrix Core Stripper Integrated Dissipator Core Membrane Transdimensional Reconstructor Terrabomb Achievements -------------- Rodney's Helpers Challenges ------------ None Game ------ Seed ShrapnelShiftReplicator Manual? 1 Play Time 02:32:21 Cumulative 1486.7 hours Start 2026.06.26 @ 15:42:41 End 2026.06.26 @ 20:35:55 Sessions 5 Manual Loads 0 Difficulty Rogue Special Mode None Game No. 726 Rogue 718 Adventurer 8 Explorer 0 Win Type 2 Total 382 Types 191/26/90/14/4/5/17/12/10/13 Lore% 99 Gallery% 97 Achievement% 95 Wizard Run 0 Options --------- Layout 2 ASCII 0 Keyboard 0 Movement Arrows Keybinds 0 Fullscreen 1 Font 32/SmallcapsGlow Map View 50x44 Zoom Use 0% Tactical HUD 1 Map Filters NONE Filters NONE Steam 1 RUN: d2b63509-aa68-47b2-9122-649ee54dc5e9